fUSD/lending_fUSD_20240117
["ID","MTS","AMOUNT","RATE_DAILY","PERIOD"]
[311874578,1705482652878,-1622.81,0.00022191,2]
[311874579,1705482652888,-1275.71,0.00022191,2]
[311874580,1705482652897,-500.0,0.00022191,2]
[311874581,1705482652907,-500.0,0.00022191,2]
[311874582,1705482652917,-500.0,0.00022191,2]
[311874583,1705482652927,-575.50757298,0.00022191,2]
[311874584,1705482652937,-603.31,0.00022191,2]
[311874585,1705482652947,-852.5,0.00022191,2]
[311874586,1705482652957,-500.0,0.00022191,2]
[311874587,1705482652967,-956.73,0.00022191,2]
[311874588,1705482652977,-500.0,0.00022191,2]
[311874589,1705482652988,-1116.72,0.00022191,2]
[311874590,1705482653326,-1080.3,0.00022191,2]
[311874591,1705482653336,-648.0,0.00022191,2]
[311874592,1705482653345,-500.0,0.00022191,2]
[311874593,1705482653354,-849.34,0.00022191,2]
[311874594,1705482653363,-549.83,0.00022191,2]
[311874595,1705482653373,-500.0,0.00022191,2]
[311874596,1705482653383,-1871.38,0.00022191,2]
[311874597,1705482653395,-500.0,0.00022191,2]
[311874598,1705482653406,-500.0,0.00022191,2]
[311874599,1705482653415,-712.38,0.00022191,2]
[311874600,1705482653426,-989.57,0.00022191,2]
[311874601,1705482653436,-710.96,0.00022191,2]
[311874602,1705482653446,-987.19,0.00022191,2]
[311874603,1705482653455,-1080.37,0.00022191,2]
[311874604,1705482653465,-500.0,0.00022191,2]
[311874605,1705482653476,-500.0,0.00022191,2]
[311874606,1705482653488,-500.0,0.00022191,2]
[311874607,1705482653498,-1182.23,0.00022191,2]
[311874608,1705482653509,-500.0,0.00022191,2]
[311874609,1705482653519,-701.26,0.00022191,2]
[311874610,1705482653530,-1305.5,0.00022191,2]
[311874611,1705482653539,-500.0,0.00022191,2]
[311874612,1705482653549,-500.0,0.00022191,2]
[311874613,1705482653561,-500.0,0.00022191,2]
[311874614,1705482653571,-500.0,0.00022191,2]
[311874615,1705482653582,-500.0,0.00022191,2]
[311874616,1705482653592,-500.0,0.00022191,2]
[311874617,1705482653602,-500.0,0.00022191,2]
[311874618,1705482653612,-905.6,0.00022191,2]
[311874619,1705482653623,-804.38,0.00022191,2]
[311874620,1705482653633,-639.62,0.00022191,2]
[311874621,1705482653643,-500.0,0.00022191,2]
[311874622,1705482653654,-500.0,0.00022191,2]
[311874623,1705482653664,-164.59956867,0.00022191,2]
[311874624,1705482653674,-812.82,0.00022191,2]
[311874625,1705482653684,-500.0,0.00022191,2]
[311874626,1705482653695,-774.03,0.00022191,2]
[311874627,1705482653704,-585.4,0.00022191,2]
[311874628,1705482653714,-540.68,0.00022191,2]
[311874629,1705482653723,-500.0,0.00022191,2]
[311874630,1705482653732,-1240.49,0.00022191,2]
[311874631,1705482653742,-500.0,0.00022191,2]
[311874632,1705482653751,-503.06,0.00022191,2]
[311874633,1705482653761,-920.75,0.00022191,2]
[311874634,1705482653770,-783.48,0.00022191,2]
[311874635,1705482653780,-1145.06,0.00022191,2]
[311874636,1705482653790,-884.18,0.00022191,2]
[311874637,1705482653800,-552.61,0.00022191,2]
[311874638,1705482653809,-500.0,0.00022191,2]
[311874639,1705482653819,-464.36727745,0.00022191,2]
[311874640,1705482653832,-500.0,0.00022191,2]
[311874641,1705482653842,-500.0,0.00022191,2]
[311874642,1705482653851,-500.0,0.00022191,2]
[311874643,1705482653861,-500.0,0.00022191,2]
[311874644,1705482653870,-1201.92,0.00022191,2]
[311874645,1705482653880,-500.0,0.00022191,2]
[311874646,1705482653889,-500.0,0.00022191,2]
[311874647,1705482653898,-864.19,0.00022191,2]
[311874648,1705482653908,-1135.36,0.00022191,2]
[311874649,1705482653917,-808.47,0.00022191,2]
[311874650,1705482653926,-500.0,0.00022191,2]
[311874651,1705482653936,-1962.33,0.00022191,2]
[311874652,1705482653945,-569.8,0.00022191,2]
[311874653,1705482653955,-500.0,0.00022191,2]
[311874654,1705482653964,-500.0,0.00022191,2]
[311874655,1705482653974,-1000.0,0.00022191,2]
[311874656,1705482653983,-500.0,0.00022191,2]
[311874657,1705482653992,-500.0,0.00022191,2]
[311874658,1705482654002,-1000.0,0.00022191,2]
[311874659,1705482654011,-500.0,0.00022191,2]
[311874660,1705482654020,-834.88,0.00022191,2]
[311874661,1705482654030,-500.0,0.00022191,2]
[311874662,1705482654039,-92.8958354,0.00022191,2]
[311874663,1705482654709,-407.1041646,0.00022191,2]
[311874664,1705482654718,-500.0,0.00022191,2]
[311874665,1705482654727,-841.08,0.00022191,2]
[311874666,1705482654736,-803.5586598,0.00022191,2]
[311874667,1705482654748,-365.2213402,0.00022191,2]
[311874668,1705482654757,-521.3,0.00022191,2]
[311874669,1705482654766,-500.0,0.00022191,2]
[311874670,1705482654775,-500.0,0.00022191,2]
[311874671,1705482654784,-500.0,0.00022191,2]
[311874672,1705482654793,-500.0,0.00022191,2]
[311874673,1705482654802,-500.0,0.00022191,2]
[311874674,1705482654812,-177.9430234,0.00022191,2]
[311874675,1705482654821,-1026.32,0.00022191,2]
[311874676,1705482654830,-976.85,0.00022191,2]
[311874677,1705482654840,-682.18,0.00022191,2]
[311874678,1705482654849,-500.0,0.00022191,2]
[311874679,1705482654858,-500.0,0.00022191,2]
[311874680,1705482654867,-617.08,0.00022191,2]
[311874681,1705482654876,-500.0,0.00022191,2]
[311874682,1705482654885,-500.0,0.00022191,2]
[311874683,1705482654894,-570.16,0.00022191,2]
[311874684,1705482654903,-500.0,0.00022191,2]
[311874685,1705482654912,-500.0,0.00022191,2]
[311874686,1705482654921,-807.97,0.00022191,2]
[311874687,1705482654931,-500.0,0.00022191,2]
[311874688,1705482654940,-498.63729517,0.00022191,2]
[311874689,1705482654953,-546.17176038,0.00022191,2]
[311874690,1705482654964,-55.31094445,0.00022191,2]
[311874691,1705482654974,-529.92902262,0.00022191,2]
[311874692,1705482654985,-621.56097738,0.00022191,2]
[311874693,1705482654994,-408.65523651,0.00022191,2]
[311874694,1705482655085,-91.34476349,0.00022191,2]
[311874695,1705482655094,-500.0,0.00022191,2]
[311874696,1705482655103,-416.19923651,0.00022191,2]
[311874697,1705482655176,-261.99836,0.00022191,2]
[311874698,1705482655188,-24.11240349,0.00022191,2]
[311874699,1705482655197,-525.8677151,0.00022191,2]
[311874700,1705482655207,-500.0,0.00022191,2]
[311874701,1705482655219,-500.0,0.00022191,2]
[311874702,1705482655229,-659.87,0.00022191,2]
[311874703,1705482655238,-1339.07,0.00022191,2]
[311874704,1705482655246,-534.54403965,0.00022191,2]
[311874705,1705482655257,-500.0,0.00022191,2]
[311874706,1705482655266,-500.0,0.00022191,2]
[311874707,1705482655275,-717.31,0.00022191,2]
[311874708,1705482655284,-500.0,0.00022191,2]
[311874709,1705482655295,-893.42,0.00022191,2]
[311874710,1705482655305,-350.33562498,0.00022191,2]
[311874711,1705482655317,-149.66437502,0.00022191,2]
[311874712,1705482655327,-401.19,0.00022191,2]
[311874713,1705482655339,-1047.79,0.00022191,2]
[311874714,1705482655348,-131.68938498,0.00022191,2]
[311874715,1705482655374,-369.54061502,0.00022191,2]
[311874716,1705482655389,-500.0,0.00022191,2]
[311874717,1705482655405,-1232.06,0.00022191,2]
[311874718,1705482655416,-500.0,0.00022191,2]
[311874719,1705482655428,-500.0,0.00022191,2]
[311874720,1705482655441,-1176.51,0.00022191,2]
[311874721,1705482655454,-500.0,0.00022191,2]
[311874722,1705482655467,-500.0,0.00022191,2]
[311874723,1705482655481,-500.0,0.00022191,2]
[311874724,1705482655494,-500.0,0.00022191,2]
[311874725,1705482655504,-1035.88,0.00022191,2]
[311874726,1705482655517,-929.7,0.00022191,2]
[311874727,1705482655530,-500.0,0.00022191,2]
[311874728,1705482655543,-1063.6,0.00022191,2]
[311874729,1705482655555,-500.0,0.00022191,2]
[311874730,1705482655569,-1364.91,0.00022191,2]
[311874731,1705482655582,-2396.93,0.00022191,2]
[311874732,1705482655593,-500.0,0.00022191,2]
[311874733,1705482655608,-600.65,0.00022191,2]
[311874734,1705482655621,-500.0,0.00022191,2]
[311874735,1705482655635,-500.0,0.00022191,2]
[311874736,1705482655648,-1001.98,0.00022191,2]
[311874737,1705482655660,-500.0,0.00022191,2]
[311874738,1705482655673,-832.62,0.00022191,2]
[311874739,1705482655687,-840.75,0.00022191,2]
[311874740,1705482655700,-506.46,0.00022191,2]
[311874741,1705482655713,-712.52,0.00022191,2]
[311874742,1705482655727,-738.13,0.00022191,2]
[311874743,1705482655741,-500.0,0.00022191,2]
[311874744,1705482655751,-865.12,0.00022191,2]
[311874745,1705482655762,-500.0,0.00022191,2]
[311874746,1705482655772,-699.07,0.00022191,2]
[311874747,1705482655786,-1412.34,0.00022191,2]
[311874748,1705482655798,-1074.48,0.00022191,2]
[311874749,1705482655809,-683.24,0.00022191,2]
[311874750,1705482655824,-928.54,0.00022191,7]
[311874751,1705482655835,-635.26,0.00022191,2]
[311874752,1705482655846,-811.63,0.00022191,2]
[311874753,1705482655857,-500.0,0.00022191,2]
[311874754,1705482655876,-500.0,0.00022191,2]
[311874755,1705482655888,-500.0,0.00022191,2]
[311874756,1705482655900,-1685.07,0.00022191,2]
[311874757,1705482655911,-419.4907576,0.00022191,2]
[311874758,1705482655923,-999.36,0.00022191,2]
[311874759,1705482655935,-1560.83,0.00022191,2]
[311874760,1705482655946,-703.23,0.00022191,2]
[311874761,1705482655958,-500.45,0.00022191,2]
[311874762,1705482655970,-196.24,0.00022191,2]
[311874763,1705482655981,-500.0,0.00022191,2]
[311874764,1705482655993,-500.0,0.00022191,2]
[311874765,1705482656005,-1058.02,0.00022191,2]
[311874766,1705482656016,-504.96,0.00022191,2]
[311874767,1705482656027,-2137.0,0.00022191,2]
[311874768,1705482656039,-500.0,0.00022191,2]
[311874769,1705482656051,-1352.6,0.00022191,2]
[311874770,1705482656062,-500.0,0.00022191,2]
[311874771,1705482656073,-994.85,0.00022191,2]
[311874772,1705482656084,-300.0,0.00022191,2]
[311874773,1705482656096,-500.0,0.00022191,2]
[311874774,1705482656107,-500.0,0.00022191,2]
[311874775,1705482656119,-500.0,0.00022191,2]
[311874776,1705482656130,-390.92,0.00022191,2]
[311874777,1705482656142,-500.0,0.00022191,2]
[311874778,1705482656153,-907.59,0.00022191,2]
[311874779,1705482656165,-500.0,0.00022191,2]
[311874780,1705482656176,-770.41,0.00022191,2]
[311874781,1705482656188,-500.0,0.00022191,2]
[311874782,1705482656199,-842.82,0.00022191,2]
[311874783,1705482656211,-500.0,0.00022191,2]
[311874784,1705482656224,-500.0,0.00022191,2]
[311874785,1705482656235,-849.94,0.00022191,2]
[311874786,1705482656247,-500.0,0.00022191,2]
[311874787,1705482656259,-830.59,0.00022191,2]
[311874788,1705482656271,-500.0,0.00022191,2]
[311874789,1705482656282,-500.0,0.00022191,2]
[311874790,1705482656294,-500.0,0.00022191,2]
[311874791,1705482656306,-500.0,0.00022191,2]
[311874792,1705482656317,-500.0,0.00022191,2]
[311874793,1705482656328,-2779.87,0.00022191,2]
[311874794,1705482656340,-500.0,0.00022191,2]
[311874795,1705482656357,-1104.42,0.00022191,2]
[311874796,1705482656368,-582.42994882,0.00022191,2]
[311874797,1705482656380,-500.0,0.00022191,2]
[311874798,1705482656390,-741.46,0.00022191,2]
[311874799,1705482656401,-200.0,0.00022191,2]
[311874800,1705482656413,-1257.22,0.00022191,2]
[311874801,1705482656424,-500.0,0.00022191,2]
[311874802,1705482656435,-500.0,0.00022191,2]
[311874803,1705482656447,-878.01,0.00022191,2]
[311874804,1705482656458,-500.0,0.00022191,2]
[311874805,1705482656470,-500.0,0.00022191,2]
[311874806,1705482656482,-500.0,0.00022191,2]
[311874807,1705482656494,-634.94,0.00022191,2]
[311874808,1705482656505,-2385.25,0.00022191,2]
[311874809,1705482656522,-1062.9,0.00022191,2]
[311874810,1705482656533,-500.0,0.00022191,2]
[311874811,1705482656545,-2806.28,0.00022191,2]
[311874812,1705482656556,-500.0,0.00022191,2]
[311874813,1705482656568,-1008.89,0.00022191,2]
[311874814,1705482656579,-847.51,0.00022191,2]
[311874815,1705482656591,-989.78,0.00022191,2]
[311874816,1705482656602,-500.0,0.00022191,2]
[311874817,1705482656614,-500.0,0.00022191,2]
[311874818,1705482656625,-500.0,0.00022191,2]
[311874819,1705482656636,-509.28,0.00022191,2]
[311874820,1705482656647,-835.63,0.00022191,2]
[311874821,1705482656658,-626.44,0.00022191,2]
[311874822,1705482656670,-500.0,0.00022191,2]
[311874823,1705482656681,-500.0,0.00022191,2]
[311874824,1705482656692,-1278.69,0.00022191,2]
[311874825,1705482656704,-500.0,0.00022191,2]
[311874826,1705482656715,-616.67530543,0.00022191,2]
[311874827,1705482656843,-34.16469457,0.00022191,2]
[311874828,1705482656855,-500.0,0.00022191,2]
[311874829,1705482656868,-500.0,0.00022191,2]
[311874830,1705482656881,-500.0,0.00022191,2]
[311874831,1705482656892,-1134.98,0.00022191,2]
[311874832,1705482656905,-500.0,0.00022191,2]
[311874833,1705482656917,-523.79,0.00022191,2]
[311874834,1705482656929,-971.67,0.00022191,2]
[311874835,1705482656942,-500.0,0.00022191,2]
[311874836,1705482656954,-2130.23,0.00022191,2]
[311874837,1705482656966,-634.57,0.00022191,2]
[311874838,1705482656978,-539.32,0.00022191,2]
[311874839,1705482656991,-500.0,0.00022191,2]
[311874840,1705482657004,-2700.94,0.00022191,2]
[311874841,1705482657015,-500.0,0.00022191,2]
[311874842,1705482657028,-500.0,0.00022191,2]
[311874843,1705482657041,-974.81,0.00022191,2]
[311874844,1705482657052,-604.51851808,0.00022191,2]
[311874845,1705482657064,-1153.48,0.00022191,2]
[311874846,1705482657076,-500.0,0.00022191,2]
[311874847,1705482657087,-500.0,0.00022191,2]
[311874848,1705482657100,-708.03,0.00022191,2]
[311874849,1705482657112,-508.73,0.00022191,2]
[311874850,1705482657124,-500.0,0.00022191,2]
[311874851,1705482657136,-353.67555696,0.00022191,2]
[311874852,1705482657151,-1092.34444304,0.00022191,2]
[311874853,1705482657163,-500.0,0.00022191,2]
[311874854,1705482657175,-706.43,0.00022191,2]
[311874855,1705482657187,-641.88722462,0.00022191,2]
[311874856,1705482657197,-852.1,0.00022191,2]
[311874857,1705482657209,-1187.06,0.00022191,2]
[311874858,1705482657224,-3504.33,0.00022191,2]
[311874859,1705482657235,-1360.94,0.00022191,2]
[311874860,1705482657246,-500.0,0.00022191,2]
[311874861,1705482657258,-500.0,0.00022191,2]
[311874862,1705482657269,-650.48,0.00022191,2]
[311874863,1705482657280,-500.0,0.00022191,2]
[311874864,1705482657292,-500.0,0.00022191,2]
[311874865,1705482657302,-500.0,0.00022191,2]
[311874866,1705482657314,-507.75,0.00022191,2]
[311874867,1705482657325,-505.89975051,0.00022191,2]
[311874868,1705482657336,-543.95,0.00022191,2]
[311874869,1705482657347,-1166.66,0.00022191,2]
[311874870,1705482657359,-5874.88,0.00022191,2]
[311874871,1705482657370,-1548.5,0.00022191,2]
[311874872,1705482657381,-2491.2,0.00022191,2]
[311874873,1705482657392,-1396.32,0.00022191,2]
[311874874,1705482657403,-1034.92,0.00022191,2]
[311874875,1705482657415,-504.69,0.00022191,2]
[311874876,1705482657426,-500.0,0.00022191,2]
[311874877,1705482657437,-500.0,0.00022191,2]
[311874878,1705482657448,-657.8,0.00022191,2]
[311874879,1705482657459,-871.39,0.00022191,2]
[311874880,1705482657470,-500.0,0.00022191,2]
[311874881,1705482657481,-1177.93,0.00022191,2]
[311874882,1705482657492,-1436.21,0.00022191,2]
[311874883,1705482657503,-500.0,0.00022191,2]
[311874884,1705482657514,-500.0,0.00022191,2]
[311874885,1705482657526,-994.87,0.00022191,2]
[311874886,1705482657536,-500.0,0.00022191,2]
[311874887,1705482657547,-1038.85,0.00022191,2]
[311874888,1705482657558,-500.0,0.00022191,2]
[311874889,1705482657568,-500.0,0.00022191,2]
[311874890,1705482657581,-1175.39,0.00022191,2]
[311874891,1705482657591,-500.0,0.00022191,2]
[311874892,1705482657601,-2523.29,0.00022191,2]
[311874893,1705482657612,-1363.2,0.00022191,2]
[311874894,1705482657622,-912.77,0.00022191,2]
[311874895,1705482657633,-500.0,0.00022191,2]
[311874896,1705482657645,-500.0,0.00022191,2]
[311874897,1705482657656,-872.74,0.00022191,2]
[311874898,1705482657667,-150.0,0.00022191,2]
[311874899,1705482657678,-599.28,0.00022191,2]
[311874900,1705482657689,-500.0,0.00022191,2]
[311874901,1705482657700,-1129.01,0.00022191,2]
[311874902,1705482657710,-575.59,0.00022191,2]
[311874903,1705482657721,-500.0,0.00022191,2]
[311874904,1705482657733,-500.0,0.00022191,2]
[311874905,1705482657743,-500.0,0.00022191,2]
[311874906,1705482657754,-4674.39,0.00022191,2]
[311874907,1705482657764,-737.77,0.00022191,2]
[311874908,1705482657775,-538.03,0.00022191,2]
[311874909,1705482657786,-500.0,0.00022191,2]
[311874910,1705482657797,-2810.55,0.00022191,2]
[311874911,1705482657808,-668.13,0.00022191,2]
[311874912,1705482657819,-1571.61,0.00022191,2]
[311874913,1705482657831,-524.3,0.00022191,2]
[311874914,1705482657843,-2768.91,0.00022191,2]
[311874915,1705482657855,-514.08,0.00022191,2]
[311874916,1705482657866,-2028.0058512,0.00022191,2]
[311874917,1705482659371,-498.1733841,0.00021917,2]
[311874918,1705482659461,-212.6366159,0.00021917,2]
[311874919,1705482659471,-500.0,0.00021917,2]
[311874920,1705482659480,-500.0,0.00021917,2]
[311874921,1705482659489,-501.34051388,0.00021917,2]
[311874922,1705482659498,-93.68144281,0.00021917,2]
[311874923,1705482659510,-406.31855719,0.00021917,2]
[311874924,1705482659520,-36.56679719,0.00022191,2]
[311874925,1705482659531,-501.7001713,0.00022191,2]
[311874926,1705482659542,-732.32718031,0.00022191,2]
[311874927,1705482659551,-500.0,0.00022191,2]
[311874928,1705482659560,-500.0,0.00022191,2]
[311874929,1705482659570,-500.0,0.00022191,2]
[311874930,1705482659579,-645.28,0.00022191,2]
[311874931,1705482659588,-1084.74,0.00022191,2]
[311874932,1705482659598,-309.95281969,0.00022191,2]
[311874933,1705482659618,-236.04718031,0.00022191,2]
[311874934,1705482659627,-906.25999723,0.00022191,5]
[311874935,1705482659638,-2708.46000277,0.00022191,5]
[311874936,1705482659647,-153.47013946,0.00022191,2]
[311874937,1705482659658,-268.51791053,0.00022191,2]
[311874938,1705482659759,-355.32,0.00022191,2]
[311874939,1705482660450,-516.68256542,0.00021714,2]
[311874940,1705482660480,-2.5052267,0.00021714,2]
[311874941,1705482660489,-500.0,0.00021917,2]
[311874942,1705482660498,-142.32543721,0.00021917,2]
[311874943,1705482660510,-357.67456279,0.00021917,2]
[311874944,1705482660519,-684.22368618,0.00022091,2]
[311874945,1705482660528,-606.47600412,0.00022091,2]
[311874946,1705482660540,-343.48237838,0.00022091,2]
[311874947,1705482660551,-908.2369242,0.00022091,2]
[311874948,1705482660603,-522.29568654,0.00021917,2]
[311874949,1705482660613,-3382.69414542,0.00022091,2]
[311874950,1705482660622,-462.59195001,0.00022191,2]
[311874951,1705482660632,-281.9088805,0.00022191,2]
[311874952,1705482660641,-5807.34,0.00022191,2]
[311874953,1705482660650,-780.66,0.00022191,2]
[311874954,1705482660659,-500.0,0.00022191,2]
[311874955,1705482660668,-626.37,0.00022191,2]
[311874956,1705482660678,-2127.48,0.00022191,2]
[311874957,1705482660687,-727.77,0.00022191,2]
[311874958,1705482660696,-626.22,0.00022191,2]
[311874959,1705482660705,-644.7,0.00022191,2]
[311874960,1705482660715,-1243.96,0.00022191,2]
[311874961,1705482660724,-936.91,0.00022191,2]
[311874962,1705482660733,-500.0,0.00022191,2]
[311874963,1705482660742,-549.4,0.00022191,2]
[311874964,1705482660751,-1570.16,0.00022191,2]
[311874965,1705482660761,-4810.18,0.00022191,2]
[311874966,1705482660770,-9347.66,0.00022191,2]
[311874967,1705482660779,-458.70253066,0.00022191,2]
[311874968,1705482660788,-1286.34,0.00022191,2]
[311874969,1705482660797,-2150.3,0.00022191,2]
[311874970,1705482660806,-500.0,0.00022191,2]
[311874971,1705482660815,-838.13,0.00022191,2]
[311874972,1705482660824,-512.58274967,0.00022191,2]
[311874973,1705482660836,-500.0,0.00022191,2]
[311874974,1705482660848,-1088.39635578,0.00022191,2]
[311874975,1705482660868,-861.16236143,0.00022191,2]
[311874976,1705482660879,-82.41128279,0.00022191,2]
[311874977,1705482660888,-516.88,0.00022191,2]
[311874978,1705482660897,-88.13300036,0.00022191,2]
[311874979,1705482661697,-161.17,0.00021337,2]
[311874980,1705482661706,-2766.45,0.00021917,2]
[311874981,1705482661715,-263.85582479,0.00021917,2]
[311874982,1705482661726,-236.14417521,0.00021917,2]
[311874983,1705482661735,-500.0,0.00021917,2]
[311874984,1705482661744,-138.75547637,0.00021917,2]
[311874985,1705482661926,-361.24452363,0.00021917,2]
[311874986,1705482661935,-411.86699964,0.00022191,2]
[311874987,1705482661944,-500.0,0.00022191,2]
[311874988,1705482661954,-1752.81,0.00022191,2]
[311874989,1705482662151,-653.37,0.00022191,2]
[311874990,1705482662182,-2281.94,0.00022191,2]
[311874991,1705482662192,-7383.44,0.00022191,2]
[311874992,1705482662201,-874.07,0.00022191,2]
[311874993,1705482662210,-500.0,0.00022191,2]
[311874994,1705482662223,-500.0,0.00022191,2]
[311874995,1705482662232,-2652.59,0.00022191,2]
[311874996,1705482662241,-500.0,0.00022191,2]
[311874997,1705482662250,-500.0,0.00022191,2]
[311874998,1705482662260,-1397.25329824,0.00022191,2]
[311874999,1705482662582,-7351.74604712,0.00022191,2]
[311875000,1705482662593,-2352.17644299,0.00022191,2]
[311875001,1705482662613,-474.78421165,0.00022191,2]
[311875002,1705482662622,-611.46,0.00022191,2]
[311875003,1705482662631,-500.0,0.00022191,2]
[311875004,1705482662640,-500.0,0.00022191,2]
[311875005,1705482662649,-500.0,0.00022191,2]
[311875006,1705482662659,-500.0,0.00022191,2]
[311875007,1705482662668,-637.59,0.00022191,2]
[311875008,1705482662678,-4448.07,0.00022191,2]
[311875009,1705482662687,-2843.98,0.00022191,2]
[311875010,1705482662696,-550.95,0.00022191,2]
[311875011,1705482662706,-500.0,0.00022191,2]
[311875012,1705482662715,-14413.51,0.00022191,2]
[311875013,1705482662725,-499.5420819,0.00022191,2]
[311875014,1705482662737,-28.0602735,0.00022191,2]
[311875015,1705482662746,-888.59042302,0.00022191,2]
[311875016,1705482782958,502.17155087,0.00021917,20]
[311875018,1705482872362,283.32,0.00018831,2]
[311875021,1705483357663,269.15,0.00018438,2]
[311875023,1705483521327,337.75486812,0.00017795,2]
[311875025,1705483700724,151.95541755,0.00017706,2]
[311875066,1705483832689,-295.46237176,0.00020163,2]
[311875067,1705483832698,-503.84036235,0.00020164,2]
[311875068,1705483832707,-159.9,0.00020165,2]
[311875069,1705483832717,-2968.6344,0.00020204,2]
[311875070,1705483832726,-200.0,0.00020218,2]
[311875071,1705483832735,-162.46277826,0.0002022,2]
[311875072,1705483832744,-168.8,0.00020249,2]
[311875073,1705483832753,-200.0,0.00020249,2]
[311875074,1705483832762,-1000.0,0.00020252,2]
[311875075,1705483832771,-494.68,0.0002026,2]
[311875076,1705483832781,-150.0,0.00020278,2]
[311875077,1705483832790,-250.0,0.00020304,2]
[311875078,1705483832799,-20684.73292515,0.00020304,2]
[311875079,1705483832819,-980.77922571,0.00020304,2]
[311875080,1705483832831,-2234.48784914,0.00020304,2]
[311875081,1705483832840,-165.83,0.0002032,2]
[311875082,1705483832849,-366.87,0.00020359,2]
[311875083,1705483832859,-164.19,0.00020382,2]
[311875084,1705483832868,-418.54714395,0.00020382,2]
[311875085,1705483833363,-81.44285605,0.00020382,2]
[311875086,1705483833373,-157.0,0.00020412,2]
[311875087,1705483833383,-159.37,0.00020457,2]
[311875088,1705483833392,-247.06387485,0.000205,2]
[311875120,1705483838284,-503.84036235,0.00020162,2]
[311875121,1705483838293,-2.93612515,0.000205,2]
[311875122,1705483838302,-157.0,0.00020545,2]
[311875123,1705483838312,-1446.21582531,0.00020548,2]
[311875124,1705483838546,-553.78417469,0.00020548,2]
[311875125,1705483838556,-1021.6321417,0.00020615,2]
[311875126,1705483838567,-584.62144801,0.00020615,2]
[311875339,1705483840827,-250.0,0.00020542,2]
[311875341,1705483840837,-250.0,0.00020615,2]
[311875347,1705483840892,-3157.71648971,0.00020615,2]
[311875350,1705483840907,-892.71262058,0.00020615,2]
[311875352,1705483840916,-157.0,0.00020678,2]
[311875354,1705483840926,-269.15,0.00020702,2]
[311875356,1705483840936,-161.17,0.00020773,2]
[311875358,1705483840946,-157.0,0.00020811,2]
[311875360,1705483840956,-176.27,0.00020917,2]
[311875362,1705483840965,-157.0,0.00020944,2]
[311875364,1705483840975,-159.83,0.00020948,2]
[311875366,1705483840985,-157.0,0.00021077,2]
[311875369,1705483840995,-159.9,0.00021174,2]
[311875371,1705483841005,-157.0,0.0002121,2]
[311875373,1705483841014,-159.83,0.0002121,2]
[311875375,1705483841024,-494.68,0.00021239,2]
[311875377,1705483841033,-157.0,0.00021343,2]
[311875379,1705483841042,-1037.59199759,0.0002136,3]
[311875381,1705483841056,-5792.31324963,0.00021361,2]
[311875643,1705483843555,-11112.76475037,0.00021361,2]
[311875645,1705483843564,-159.37,0.00021419,2]
[311875647,1705483843573,-352.33,0.00021465,2]
[311875649,1705483843583,-159.83,0.00021472,2]
[311875651,1705483843592,-157.0,0.00021476,2]
[311875653,1705483843604,-2471.83618827,0.00021523,2]
[311875655,1705483843613,-1000.0,0.00021616,2]
[311875657,1705483843623,-17015.2602,0.00021616,2]